bitfinex/quotes_ETHUSD_20250524
["timestamp","ask_amount","ask_price","bid_price","bid_amount"]
[1748109982104,3.90837578,2558.7,2558.6,10.63719063]
[1748109982405,3.90837578,2558.7,2558.6,27.50619063]
[1748109985221,3.90837578,2558.7,2558.6,25.6737]
[1748109987814,3.90837578,2558.7,2558.6,25.89165242]
[1748109987975,3.90837578,2558.7,2558.6,26.99475657]
[1748109995819,3.90837578,2558.7,2558.6,39.48895242]
[1748109996021,4.68967578,2558.7,2558.6,31.48895242]
[1748109996185,4.68967578,2558.7,2558.6,43.20095242]
[1748109996518,4.68967578,2558.7,2558.6,50.983]
[1748109996920,5.05399595,2558.7,2558.6,50.983]
[1748110002799,5.05399595,2558.7,2558.6,39.271]
[1748110003004,5.9702159,2558.7,2558.6,50.984]
[1748110003960,5.9702159,2558.7,2558.6,24.869]
[1748110004119,5.9702159,2558.7,2558.6,50.982]
[1748110010428,4.27269595,2558.7,2558.6,50.982]
[1748110010956,3.90837578,2558.7,2558.6,50.982]
[1748110011253,3.90837578,2558.7,2558.6,51.20083227]
[1748110020576,0.05,2558.9,2558.7,8.0]
[1748110020738,3.90808191,2558.8,2558.7,9.83249063]
[1748110020938,0.8262,2559.8,2558.9,0.821]
[1748110021167,3.90726532,2559.4,2559.3,1.83249063]
[1748110021507,3.90716574,2559.4,2559.3,35.15083227]
[1748110021975,3.90716574,2559.4,2559.3,34.32983227]
[1748110022741,3.90716574,2559.4,2559.3,8.21883227]
[1748110022989,3.90716574,2559.4,2559.3,36.1623229]
[1748110023279,3.90713983,2559.5,2559.4,8.0]
[1748110023658,3.90713983,2559.5,2559.4,8.21883227]
[1748110026694,3.90713983,2559.5,2559.4,34.32583227]
[1748110027173,3.90713983,2559.5,2559.4,34.107]
[1748110029778,3.90713983,2559.5,2559.4,50.969]
[1748110033898,3.90713983,2559.5,2559.4,50.968]
[1748110035596,3.90713983,2559.5,2559.4,51.18559553]
[1748110036262,3.90713983,2559.5,2559.4,50.968]
[1748110037784,3.90713983,2559.5,2559.4,51.18568287]
[1748110042820,3.90713983,2559.5,2559.4,39.47668287]
[1748110042985,3.90713983,2559.5,2559.4,51.18468287]
[1748110050632,3.90696525,2559.6,2559.5,8.0]
[1748110050794,3.90696525,2559.6,2559.5,8.21768287]
[1748110051125,3.90676774,2559.7,2559.5,8.21768287]
[1748110051283,3.90676774,2559.7,2559.6,1.83249063]
[1748110051687,3.90676774,2559.7,2559.6,2.0501735]
[1748110051888,0.05,2559.9,2559.7,8.7912]
[1748110052089,0.05,2559.9,2559.8,1.8715493]
[1748110052290,0.05,2559.9,2559.8,1.83249063]
[1748110052490,3.95640259,2559.9,2559.8,2.41401681]
[1748110053289,0.05,2559.9,2559.8,2.41401681]
[1748110053505,3.95640259,2559.9,2559.8,2.41401681]
[1748110053707,3.95640259,2559.9,2559.8,11.53453849]
[1748110054338,0.05,2559.9,2559.8,11.53453849]
[1748110055151,3.95640259,2559.9,2559.8,11.53453849]
[1748110055346,0.05,2559.9,2559.8,11.53453849]
[1748110055495,0.05,2559.9,2559.8,16.78229368]
[1748110055690,0.05,2559.9,2559.8,12.87573849]
[1748110056601,0.05,2559.9,2559.8,13.2477136]
[1748110057842,0.05,2559.9,2559.8,12.87573849]
[1748110058148,0.05,2559.9,2559.8,16.78229368]
[1748110059572,0.05,2559.9,2559.8,12.87573849]
[1748110066879,0.05,2559.9,2559.8,24.57973849]
[1748110068085,0.05,2559.9,2559.8,28.48629368]
[1748110068585,0.05,2559.9,2559.8,24.57973849]
[1748110069183,0.05,2559.9,2559.8,55.82073849]
[1748110069391,3.90594718,2560.2,2559.9,8.55]
[1748110069688,3.89717062,2560.2,2560.1,9.83249063]
[1748110069897,3.89717062,2560.2,2560.1,8.0]
[1748110070070,3.90609741,2560.1,2560.0,0.36384331]
[1748110070249,3.90609741,2560.1,2560.0,34.45484331]
[1748110070593,3.90609741,2560.1,2560.0,34.67252618]
[1748110071284,3.90609741,2560.1,2560.0,14.96852618]
[1748110071481,3.90609741,2560.1,2560.0,26.67252618]
[1748110071876,3.90609741,2560.1,2560.0,34.67252618]
[1748110074603,3.90609741,2560.1,2560.0,22.96852618]
[1748110074905,5.9152059,2560.1,2560.0,34.67252618]
[1748110075063,5.9152059,2560.1,2560.0,34.091]
[1748110075999,4.66450259,2559.9,2559.8,16.854]
[1748110076200,4.66450259,2559.9,2559.8,42.945]
[1748110076515,4.66450259,2559.9,2559.8,50.945]
[1748110081112,4.66450259,2559.9,2559.8,39.241]
[1748110081413,7.86939127,2559.9,2559.8,31.243]
[1748110081708,8.41939127,2559.9,2559.8,31.243]
[1748110081869,8.56939127,2559.9,2559.8,31.243]
[1748110082270,8.93354088,2559.9,2559.8,31.243]
[1748110083009,7.10105025,2559.9,2559.8,31.243]
[1748110083816,3.90884571,2558.3,2558.2,1.16443267]
[1748110084011,3.90884571,2558.3,2558.2,42.956]
[1748110084307,3.90884571,2558.3,2558.2,51.17351919]
[1748110085685,3.90884571,2558.3,2558.2,31.46651919]
[1748110085899,3.90884571,2558.3,2558.2,43.17351919]
[1748110086199,3.90884571,2558.3,2558.2,51.17351919]
[1748110086512,3.90884571,2558.3,2558.2,25.07551919]
[1748110086674,3.90884571,2558.3,2558.2,50.958]
[1748110096808,3.90858607,2558.5,2558.3,8.0]
[1748110097032,3.90777647,2559.0,2558.4,1.83249063]
[1748110097222,0.7629,2559.5,2558.8,1.83249063]
[1748110097544,3.90762377,2559.1,2559.0,9.83249063]
[1748110097740,3.90762377,2559.1,2559.0,8.0]
[1748110100899,3.90762377,2559.1,2559.0,9.83249063]
[1748110101240,3.90762377,2559.1,2559.0,10.65349063]
[1748110101439,3.90762377,2559.1,2559.0,11.1874028]
[1748110101932,3.90749112,2559.2,2559.0,11.1874028]
[1748110101933,3.90749056,2559.2,2559.0,11.1874028]
[1748110102231,3.90762377,2559.1,2559.0,11.1874028]
[1748110102738,3.90762377,2559.1,2559.0,11.40475294]
[1748110108506,3.90762377,2559.1,2559.0,23.11375294]
[1748110112952,3.90762377,2559.1,2559.0,39.97475294]
[1748110116652,3.90746046,2559.3,2559.0,39.97475294]
[1748110116978,3.90754642,2559.2,2559.1,1.2005992]
[1748110117889,4.66973135,2559.7,2559.2,8.0]
[1748110118041,3.90714608,2559.5,2559.3,0.03906847]
[1748110118236,3.90714608,2559.5,2559.2,9.83249063]
[1748110118571,3.90692103,2559.6,2559.3,0.75126231]
[1748110118783,3.90703491,2559.5,2559.3,0.79033166]
[1748110119275,3.90678773,2559.7,2559.4,10.86724077]
[1748110119477,3.90670781,2559.7,2559.6,8.0]
[1748110119634,3.90670781,2559.7,2559.6,22.398]
[1748110120463,3.90670781,2559.7,2559.6,0.21735014]
[1748110120782,4.68580781,2559.7,2559.6,34.32335014]
[1748110122150,4.68580781,2559.7,2559.6,34.106]
[1748110126490,5.93568437,2559.7,2559.6,50.966]
[1748110126694,4.68580781,2559.7,2559.6,50.966]
[1748110127192,5.05080285,2559.7,2559.6,50.966]
[1748110127390,5.05080285,2559.7,2559.6,51.18428025]
[1748110129703,6.93487176,2559.7,2559.6,17.07828025]
[1748110129858,7.08487176,2559.7,2559.6,43.20028025]
[1748110130064,8.53537643,2559.7,2559.6,43.20028025]
[1748110130263,8.53537643,2559.7,2559.6,42.982]
[1748110134909,9.08537643,2559.7,2559.6,31.274]
[1748110135068,9.08537643,2559.7,2559.6,42.983]
[1748110135761,9.08537643,2559.7,2559.6,16.86]
[1748110135956,9.08537643,2559.7,2559.6,42.984]
[1748110139304,9.08537643,2559.7,2559.6,31.275]
[1748110139664,9.08537643,2559.7,2559.6,42.985]
[1748110139889,9.08537643,2559.7,2559.6,16.86]
[1748110140169,9.08537643,2559.7,2559.6,42.986]
[1748110141397,9.08537643,2559.7,2558.4,0.61057776]
[1748110141398,3.90854016,2558.5,2558.4,0.61057776]
[1748110141617,3.90854016,2558.5,2558.4,23.02757776]
[1748110142107,3.90854016,2558.5,2558.4,23.24555845]
[1748110142711,3.90854016,2558.5,2558.4,34.95555845]
[1748110143006,3.90854016,2558.5,2558.4,34.73757776]
[1748110149326,3.90854016,2558.5,2558.4,51.60157776]
[1748110150924,3.90854016,2558.5,2558.4,39.89157776]
[1748110151123,3.90854016,2558.5,2558.4,51.60357776]
[1748110151325,3.90854016,2558.5,2558.4,25.47457776]
[1748110151531,3.90854016,2558.5,2558.4,51.60357776]
[1748110156116,3.90854016,2558.5,2558.4,51.60457776]
[1748110156617,3.90854016,2558.5,2558.4,52.40507776]
[1748110158532,3.90854016,2558.5,2558.4,52.62318954]
[1748110166842,3.90854016,2558.5,2558.4,51.82268954]
[1748110167240,3.90854016,2558.5,2558.4,40.11068954]
[1748110167544,4.27417902,2558.5,2558.4,51.82268954]
[1748110172361,4.27425004,2558.5,2558.4,51.82268954]
[1748110175258,5.88231623,2558.5,2558.4,51.19711178]
[1748110175927,5.88231623,2558.5,2558.4,50.979]
[1748110176127,5.88231623,2558.5,2558.4,50.98]
[1748110183350,5.88231623,2558.5,2558.4,24.864]
[1748110183543,5.88231623,2558.5,2558.4,50.983]
[1748110188525,4.27425004,2558.5,2558.4,50.983]
[1748110200881,0.36570988,2558.5,2558.4,50.983]
[1748110201183,4.27425004,2558.5,2558.4,50.983]
[1748110203481,4.27425004,2558.5,2558.4,39.269]
[1748110203782,4.27425004,2558.5,2558.4,50.983]
[1748110204583,4.27425004,2558.5,2558.4,39.269]
[1748110204886,5.93681623,2558.5,2558.4,50.983]
[1748110207558,5.10355004,2558.5,2558.4,50.983]
[1748110207763,4.27425004,2558.5,2558.4,50.983]
[1748110210095,4.27425004,2558.5,2558.4,43.20193677]
[1748110210892,4.27425004,2558.5,2558.4,43.97503677]
[1748110214291,3.90854016,2558.5,2558.4,43.97503677]
[1748110220112,3.90854016,2558.5,2558.4,32.26103677]
[1748110220396,3.90854016,2558.5,2558.4,43.20093677]
[1748110220826,3.90854016,2558.5,2558.4,43.19393677]
[1748110221427,3.90854016,2558.5,2558.4,31.48093677]
[1748110221576,4.27378997,2558.5,2558.4,43.19393677]
[1748110221780,5.18808015,2558.5,2558.4,43.19393677]
[1748110222592,5.18808015,2558.5,2558.4,42.975]
[1748110229553,5.93818015,2558.5,2558.4,42.977]
[1748110230537,5.93818015,2558.5,2558.4,31.263]
[1748110230708,5.93818015,2558.5,2558.4,42.977]
[1748110232349,4.27378997,2558.5,2558.4,42.977]
[1748110233517,3.90854016,2558.5,2558.4,43.759]
[1748110233716,3.90854016,2558.5,2558.4,43.97749327]
[1748110241685,3.90845403,2558.6,2558.5,8.7624]
[1748110241985,3.90831729,2558.7,2558.6,0.7624]
[1748110242158,3.90831729,2558.7,2558.6,20.4754]
[1748110242481,3.90831729,2558.7,2558.6,20.69389327]
[1748110243783,3.90831729,2558.7,2558.6,12.69389327]
[1748110243961,3.90831729,2558.7,2558.6,13.05753829]
[1748110245985,3.90831729,2558.7,2558.6,13.05653829]
[1748110246148,3.90831729,2558.7,2558.6,15.74253829]
[1748110246353,3.90831729,2558.7,2558.6,27.45453829]
[1748110247905,3.80831729,2558.7,2558.6,27.45453829]
[1748110248287,3.80831729,2558.7,2558.6,15.74253829]
[1748110248488,3.80831729,2558.7,2558.6,27.45453829]
[1748110249590,3.80831729,2558.7,2558.6,26.69213829]
[1748110250189,3.80831729,2558.7,2558.6,0.58213829]
[1748110250392,3.80831729,2558.7,2558.6,26.68913829]
[1748110250898,3.80831729,2558.7,2558.6,14.97713829]
[1748110251053,3.80831729,2558.7,2558.6,0.58213829]
[1748110251253,3.80831729,2558.7,2558.6,26.68913829]
[1748110260902,3.80831729,2558.7,2558.6,34.68813829]
[1748110261917,3.90800206,2558.9,2558.7,8.7723]
[1748110262209,3.90808191,2558.8,2558.7,8.7723]
[1748110262900,3.90808191,2558.8,2558.7,9.35443829]
[1748110265014,3.90796778,2558.9,2558.7,9.35443829]
[1748110265237,3.90796778,2558.9,2558.8,0.21849327]
[1748110265513,3.90796778,2558.9,2558.8,0.58213829]
[1748110266915,3.90796778,2558.9,2558.8,0.96601206]
[1748110270654,3.90778331,2559.0,2558.8,0.96601206]
[1748110270655,3.90784413,2559.0,2558.8,2.79850269]
[1748110270863,3.90686589,2559.6,2558.9,9.04639327]
[1748110271154,3.90723317,2559.4,2559.3,8.0]
[1748110271445,3.90723317,2559.4,2559.3,50.966]
[1748110272164,3.90695743,2559.6,2559.4,8.0]
[1748110272328,3.90625,2560.0,2559.4,9.83249063]
[1748110272723,3.90686044,2559.6,2559.5,0.36364502]
[1748110272924,3.90686044,2559.6,2559.5,0.58213829]
[1748110273568,3.90686044,2559.6,2559.5,1.41003829]
[1748110278330,3.90686044,2559.6,2559.5,1.60686146]
[1748110287363,0.8171,2560.4,2559.8,0.7745]
[1748110287676,4.72276739,2560.4,2560.0,9.83249063]
[1748110287980,3.90609741,2560.1,2560.0,8.0]
[1748110288592,3.90609741,2560.1,2560.0,8.36246407]
[1748110288881,3.90609741,2560.1,2560.0,8.58095734]
[1748110291655,3.90609741,2560.1,2560.0,22.96895734]
[1748110291837,4.72319741,2560.1,2560.0,34.67495734]
[1748110292240,4.72319741,2560.1,2560.0,34.45646407]
[1748110292676,4.72319741,2560.1,2560.0,14.75046407]
[1748110292857,5.5861141,2560.1,2560.0,26.094]
[1748110293163,5.9501388,2560.1,2560.0,26.094]
[1748110294242,3.90716574,2559.4,2559.3,16.863]
[1748110294544,3.90716574,2559.4,2559.3,50.956]
[1748110294770,3.90716574,2559.4,2559.3,51.31907844]
[1748110294944,3.90716574,2559.4,2559.3,51.53693341]
[1748110296252,5.58739578,2559.4,2559.3,31.83093341]
[1748110296459,5.58739578,2559.4,2559.3,31.61307844]
[1748110296656,5.58739578,2559.4,2559.3,42.956]
[1748110297067,5.95179352,2559.4,2559.3,42.956]
[1748110299695,5.95179352,2559.4,2559.3,31.25]
[1748110299886,5.95179352,2559.4,2559.3,42.958]
[1748110304410,5.08866348,2559.4,2559.3,42.958]
[1748110305010,4.72426574,2559.4,2559.3,42.958]
[1748110309811,4.76354402,2559.4,2559.3,42.958]
[1748110310103,4.72426574,2559.4,2559.3,42.958]
[1748110310820,4.72426574,2559.4,2559.3,16.863]
[1748110311017,4.72426574,2559.4,2559.3,42.982]
[1748110313621,3.90716574,2559.4,2559.3,50.982]
[1748110320316,3.90716574,2559.4,2559.3,50.983]
[1748110321720,4.27192745,2559.4,2559.3,50.983]
[1748110323112,4.27192745,2559.4,2559.3,51.20147265]
[1748110323332,3.90716574,2559.4,2559.3,51.20147265]
[1748110325124,4.27245231,2559.4,2559.3,51.20147265]
[1748110327144,4.27245231,2559.4,2559.3,25.08147265]
[1748110327347,4.27245231,2559.4,2559.3,51.20047265]
[1748110327661,4.27245231,2559.4,2559.3,25.08147265]
[1748110327959,5.09040101,2559.4,2559.3,51.20047265]
[1748110328851,5.09040101,2559.4,2559.3,50.982]
[1748110330518,5.24040101,2559.4,2559.3,50.982]
[1748110330719,4.42245231,2559.4,2559.3,50.982]
[1748110331717,4.42245231,2559.4,2559.3,39.49172922]
[1748110331941,4.42245231,2559.4,2559.3,51.20072922]
[1748110334339,4.42245231,2559.4,2559.3,50.982]
[1748110336476,4.27245231,2559.4,2559.3,50.982]
[1748110336676,4.27245231,2559.4,2559.3,51.20074655]
[1748110338496,4.27245231,2559.4,2559.3,50.982]
[1748110340002,4.27245231,2559.4,2559.3,51.20072048]
[1748110356228,4.27245231,2559.4,2559.3,39.49172048]
[1748110356407,4.27245231,2559.4,2559.3,51.20072048]
[1748110358137,4.27245231,2559.4,2559.3,39.49172048]
[1748110358299,4.27245231,2559.4,2559.3,51.20072048]
[1748110365054,3.90716574,2559.4,2559.3,51.20072048]
[1748110370691,0.9715,2559.9,2559.3,51.20072048]
[1748110370896,0.8205,2560.1,2559.5,0.8051]
[1748110371048,4.27203286,2559.8,2559.6,0.03906396]
[1748110371387,4.27203286,2559.8,2559.7,19.709]
[1748110371580,4.27203286,2559.8,2559.7,19.92772048]
[1748110371978,3.90665408,2559.8,2559.7,19.92772048]
[1748110375606,3.90665408,2559.8,2559.7,19.92672048]
[1748110384923,3.90665408,2559.8,2559.7,34.31672048]
[1748110386924,3.90665408,2559.8,2559.7,35.10102048]
[1748110387091,3.90665408,2559.8,2559.7,34.31672048]
[1748110389788,3.90631849,2560.0,2559.8,8.0]
[1748110389988,3.90625,2560.0,2559.9,0.7843]
[1748110390303,3.90625,2560.0,2559.9,1.00302048]
[1748110391289,3.90625,2560.0,2559.9,11.92572048]
[1748110391490,3.90625,2560.0,2559.9,8.21872048]
[1748110391690,3.90625,2560.0,2559.9,34.31572048]
[1748110391898,4.76416515,2560.0,2559.9,34.31572048]
[1748110392188,3.90625,2560.0,2559.9,34.31572048]
[1748110395818,3.90625,2560.0,2559.9,8.21872048]
[1748110396022,3.90625,2560.0,2559.9,34.31472048]
[1748110396820,3.90625,2560.0,2559.9,35.08542048]
[1748110397330,3.90625,2560.0,2559.9,34.31472048]
[1748110399407,3.90625,2560.0,2559.9,34.31372048]
[1748110401419,3.90625,2560.0,2559.9,51.16972048]
[1748110402940,3.90625,2560.0,2559.9,43.16972048]
[1748110411433,3.90625,2560.0,2559.9,43.16572048]
[1748110426423,3.90625,2560.0,2559.9,31.46072048]
[1748110426627,3.90625,2560.0,2559.9,43.16572048]
[1748110432657,3.90625,2560.0,2559.9,51.16572048]
[1748110441697,3.90580734,2560.3,2560.1,0.7907]
[1748110441698,3.90587041,2560.3,2560.1,0.7907]
[1748110441866,3.90594484,2560.2,2560.1,0.7907]
[1748110442069,3.90594484,2560.2,2560.1,1.00942048]
[1748110444495,3.90594484,2560.2,2560.1,1.39165167]
[1748110444663,3.90594484,2560.2,2560.1,9.39165167]
[1748110449887,3.90585987,2560.3,2560.2,8.0]
[1748110450466,3.90594484,2560.2,2560.1,1.17293119]
[1748110451171,3.90594484,2560.2,2560.1,1.39119208]
[1748110452986,3.90564219,2560.4,2560.1,1.39119208]
[1748110453191,3.90579262,2560.3,2560.1,1.39119208]
[1748110453592,3.90579262,2560.3,2560.2,0.21826089]
[1748110454433,3.90579262,2560.3,2560.2,1.03336089]
[1748110454634,3.90579262,2560.3,2560.2,1.9749201]
[1748110457703,3.90571055,2560.4,2560.3,0.7989]
[1748110457902,3.80815643,2560.4,2560.3,23.39916089]
[1748110458542,3.80815643,2560.4,2560.3,23.59950662]
[1748110458740,3.80815643,2560.4,2560.3,24.17510864]
[1748110461944,3.80815643,2560.4,2560.3,26.00284645]
[1748110463740,3.80815643,2560.4,2560.3,25.63717895]
[1748110463916,3.90555994,2560.5,2560.4,8.0]
[1748110464118,3.90555994,2560.5,2560.4,19.703]
[1748110464317,3.90555994,2560.5,2560.4,20.64455921]
[1748110464909,3.90555994,2560.5,2560.4,20.8628201]
[1748110466611,3.90555994,2560.5,2560.4,34.29926089]
[1748110468607,3.90555994,2560.5,2560.4,51.15026089]
[1748110475468,3.90555994,2560.5,2560.4,39.44826089]
[1748110475755,4.68625994,2560.5,2560.4,51.14926089]
[1748110479868,4.68625994,2560.5,2560.4,25.06926089]
[1748110480225,3.90555994,2560.5,2560.4,51.15026089]
[1748110484927,3.90555994,2560.5,2560.4,39.44826089]
[1748110485161,3.90555994,2560.5,2560.4,51.15026089]
[1748110486057,3.90555994,2560.5,2560.4,8.21826089]
[1748110486255,5.56427023,2560.5,2560.4,43.15026089]
[1748110486431,5.56427023,2560.5,2560.4,51.15026089]
[1748110486824,5.92969285,2560.5,2560.4,51.15026089]
[1748110488663,5.56427023,2560.5,2560.4,51.15026089]
[1748110499177,5.56427023,2560.5,2560.4,52.61263873]
[1748110499377,4.70335994,2560.5,2560.4,52.61263873]
[1748110499791,3.90555994,2560.5,2560.4,52.61263873]
[1748110501810,4.66755994,2560.5,2560.4,25.06926089]
[1748110502112,5.03270075,2560.5,2560.4,43.14926089]
[1748110502608,5.03270075,2560.5,2560.4,51.14926089]
[1748110502914,5.03270075,2560.5,2560.4,50.931]
[1748110503902,5.94150513,2560.5,2560.4,50.933]
[1748110504475,5.94150513,2560.5,2560.4,51.15138637]
[1748110508811,6.51209337,2560.5,2560.4,51.15138637]
[1748110511015,5.60328899,2560.5,2560.4,51.15138637]
[1748110516078,4.84128899,2560.5,2560.4,51.15138637]
[1748110523420,4.84128899,2560.5,2560.4,39.44738637]
[1748110523615,4.84128899,2560.5,2560.4,51.15138637]
[1748110534843,4.88056727,2560.5,2560.4,39.44738637]
[1748110535051,5.79787002,2560.5,2560.4,39.44738637]
[1748110535261,5.79787002,2560.5,2560.4,51.15138637]
[1748110535829,5.79787002,2560.5,2560.4,51.14838637]
[1748110536314,5.79787002,2560.5,2560.4,25.06938637]
[1748110536508,5.79787002,2560.5,2560.4,51.14838637]
[1748110536741,6.59887002,2560.5,2560.4,51.14838637]
[1748110537837,6.59887002,2560.5,2560.4,39.44438637]
[1748110538154,6.59887002,2560.5,2560.4,51.14838637]
[1748110538815,6.59887002,2560.5,2560.4,50.93]
[1748110540052,6.59887002,2560.5,2560.4,16.851]
[1748110540224,6.59887002,2560.5,2560.4,42.931]
[1748110541255,6.59887002,2560.5,2560.4,31.227]
[1748110541441,6.59887002,2560.5,2560.4,16.851]
[1748110541641,6.59887002,2560.5,2560.4,42.931]
[1748110543562,6.59887002,2560.5,2560.4,42.932]
[1748110546854,6.59887002,2560.5,2560.4,31.227]
[1748110547159,6.59887002,2560.5,2560.4,42.932]
[1748110550254,6.59887002,2560.5,2560.4,42.933]
[1748110552048,6.59879926,2560.5,2560.4,42.933]
[1748110554777,6.74879926,2560.5,2560.4,42.933]
[1748110560803,6.74879926,2560.5,2560.4,42.934]
[1748110564693,4.99121823,2560.5,2560.4,42.934]
[1748110568914,5.75351823,2560.5,2560.4,31.224]
[1748110569067,5.75351823,2560.5,2560.4,42.93]
[1748110571378,5.75351823,2560.5,2560.4,31.224]
[1748110571703,5.75351823,2560.5,2560.4,42.929]
[1748110571877,6.71940435,2560.5,2560.4,42.929]
[1748110574680,6.71940435,2560.5,2560.4,31.224]
[1748110574882,6.71940435,2560.5,2560.4,42.93]
[1748110589127,6.71940435,2560.5,2560.4,31.224]
[1748110589339,6.71940435,2560.5,2560.4,42.93]
[1748110590825,4.99121823,2560.5,2560.4,42.93]
[1748110591146,4.99121823,2560.5,2560.4,51.7512]
[1748110596653,4.99121823,2560.5,2560.4,25.6722]
[1748110596859,4.99121823,2560.5,2560.4,50.925]
[1748110597540,5.03049651,2560.5,2560.4,50.925]
[1748110597747,4.99121823,2560.5,2560.4,50.925]
[1748110598964,7.21137435,2560.5,2560.4,31.22]
[1748110599124,7.25065263,2560.5,2560.4,31.22]
[1748110599327,7.21137435,2560.5,2560.4,42.925]
[1748110599963,7.25065263,2560.5,2560.4,31.22]
[1748110600263,7.21137435,2560.5,2560.4,42.925]
[1748110600667,7.25065263,2560.5,2560.4,42.925]
[1748110601151,7.21137435,2560.5,2560.4,42.925]
[1748110606866,7.21137435,2560.5,2560.4,42.926]
[1748110612500,7.21137435,2560.5,2560.4,42.927]
[1748110613302,7.21137435,2560.5,2560.4,16.851]
[1748110613505,7.25065263,2560.5,2560.4,31.222]
[1748110614190,7.21137435,2560.5,2560.4,31.222]
[1748110614367,7.25065263,2560.5,2560.4,31.222]
[1748110614777,7.21137435,2560.5,2560.4,31.222]
[1748110614962,7.25065263,2560.5,2560.4,31.222]
[1748110615401,41.31465263,2560.5,2560.4,14.371]
[1748110615703,4.45640259,2559.9,2559.8,11.707]
[1748110616001,4.45640259,2559.9,2559.8,26.078]
[1748110616586,4.82147264,2559.9,2559.8,14.371]
[1748110616778,4.82147264,2559.9,2559.8,26.078]
[1748110619488,4.97147264,2559.9,2559.8,26.078]
[1748110619687,8.12709359,2559.9,2559.8,26.078]
[1748110624978,4.42147264,2559.9,2559.8,26.078]
[1748110625239,4.42147264,2559.9,2559.8,26.8824]
[1748110626935,4.05640259,2559.9,2559.8,26.8824]
[1748110631129,4.42092488,2559.9,2559.8,26.8824]
[1748110636590,4.27092488,2559.9,2559.8,26.8824]
[1748110638636,4.27092488,2559.9,2559.8,34.8824]
[1748110639532,3.90640259,2559.9,2559.8,34.8824]
[1748110639741,3.90640259,2559.9,2559.8,35.10018189]
[1748110648425,4.47620944,2560.5,2559.9,8.0]
[1748110648624,4.47620944,2560.5,2560.3,10.64426754]
[1748110648625,3.90563974,2560.4,2560.3,10.64426754]
[1748110648826,3.90563974,2560.4,2560.3,37.78069429]
[1748110651549,3.90563974,2560.4,2560.3,35.95262675]
[1748110653177,3.90563974,2560.4,2560.3,52.80862675]
[1748110657181,3.90563974,2560.4,2560.3,46.63669429]
[1748110657482,3.90563974,2560.4,2560.3,46.63569429]
[1748110662483,3.90563974,2560.4,2560.3,45.57126754]
[1748110664503,3.90563974,2560.4,2560.3,45.78886627]
[1748110669193,3.90563974,2560.4,2560.3,53.78886627]
[1748110670353,4.47618268,2560.5,2560.3,53.78886627]
[1748110670564,0.57058824,2560.5,2560.4,8.7637]
[1748110670769,4.47607544,2560.5,2560.4,8.7637]
[1748110671476,4.47607544,2560.5,2560.4,8.98129873]
[1748110672704,0.57058824,2560.5,2560.4,8.98129873]
[1748110672905,4.47607544,2560.5,2560.4,8.98129873]
[1748110679210,0.57058824,2560.5,2560.4,8.98129873]
[1748110680307,4.47607544,2560.5,2560.4,8.98129873]
[1748110692936,4.47607544,2560.5,2560.4,8.98162013]
[1748110693430,4.47607544,2560.5,2560.4,35.03862013]
[1748110694132,0.57058824,2560.5,2560.4,35.03862013]
[1748110694430,4.47607544,2560.5,2560.4,35.03862013]
[1748110695716,0.57058824,2560.5,2560.4,35.03862013]
[1748110695926,0.57058824,2560.5,2560.4,51.88962013]
[1748110696235,4.47607544,2560.5,2560.4,52.08474379]
[1748110697133,0.57058824,2560.5,2560.4,52.08474379]
[1748110697701,4.47607544,2560.5,2560.4,53.54639661]
[1748110699037,0.57058824,2560.5,2560.4,53.54639661]
[1748110699265,0.57058824,2560.5,2560.4,55.00804943]
[1748110699556,0.05,2560.9,2560.4,55.00804943]
[1748110699557,3.95494523,2560.9,2560.5,0.8186]
[1748110699732,3.95494523,2560.9,2560.8,1.46165282]
[1748110700128,3.95494523,2560.9,2560.8,1.67957295]
[1748110701459,3.95494523,2560.9,2560.8,0.21792013]
[1748110701674,3.95494523,2560.9,2560.8,36.10213657]
[1748110705161,3.95494523,2560.9,2560.8,52.95213657]
[1748110705473,3.95494523,2560.9,2560.8,17.06813351]
[1748110705677,4.82011395,2560.9,2560.8,43.12413351]
[1748110706171,4.82011395,2560.9,2560.8,31.42313351]
[1748110706381,5.63281395,2560.9,2560.8,43.12413351]
[1748110707367,4.76764523,2560.9,2560.8,43.12413351]
[1748110710682,4.76764523,2560.9,2560.8,51.12413351]
[1748110710855,4.76764523,2560.9,2560.8,52.95113657]
[1748110719369,3.95494523,2560.9,2560.8,52.95113657]
[1748110719865,4.73424523,2560.9,2560.8,17.06813351]
[1748110720065,5.59814395,2560.9,2560.8,31.41913351]
[1748110720381,6.11334034,2560.9,2560.8,31.41913351]
[1748110720582,6.11334034,2560.9,2560.8,31.201]
[1748110721099,5.24944162,2560.9,2560.8,31.201]
[1748110723008,5.24944162,2560.9,2560.8,16.85]
[1748110723217,5.24944162,2560.9,2560.8,42.903]
[1748110725412,5.09944162,2560.9,2560.8,42.903]
[1748110727685,5.09944162,2560.9,2560.8,42.905]
[1748110727885,6.01485998,2560.9,2560.8,16.85]
[1748110728092,6.01485998,2560.9,2560.8,42.905]
[1748110728827,6.01485998,2560.9,2560.8,16.85]
[1748110729027,6.01485998,2560.9,2560.8,42.905]
[1748110735772,5.64966359,2560.9,2560.8,42.905]
[1748110735949,6.01454465,2560.9,2560.8,42.905]
[1748110737266,6.01454465,2560.9,2560.8,31.202]
[1748110737436,6.01454465,2560.9,2560.8,42.905]
[1748110739939,5.09912629,2560.9,2560.8,42.905]
[1748110743537,5.09912629,2560.9,2560.8,31.202]
[1748110743883,5.09912629,2560.9,2560.8,42.905]
[1748110744374,4.31982629,2560.9,2560.8,42.905]
[1748110749400,4.31982629,2560.9,2560.8,43.12336114]
[1748110756888,4.31982629,2560.9,2560.8,31.42036114]
[1748110757101,5.23270312,2560.9,2560.8,43.12336114]
[1748110758315,4.31982629,2560.9,2560.8,43.12336114]
[1748110773307,4.31982629,2560.9,2560.8,31.42036114]
[1748110773537,4.31982629,2560.9,2560.8,43.12336114]
[1748110773857,4.31982629,2560.9,2560.8,44.5853771]
[1748110774009,4.31982629,2560.9,2560.8,45.3865771]
[1748110774560,4.31982629,2560.9,2560.8,19.3315771]
[1748110774745,4.31982629,2560.9,2560.8,45.3805771]
[1748110775228,3.95494523,2560.9,2560.8,45.3805771]
[1748110775440,3.95494523,2560.9,2560.8,19.3315771]
[1748110775625,3.95494523,2560.9,2560.8,45.3805771]
[1748110777367,3.95494523,2560.9,2560.8,18.5303771]
[1748110777556,3.95494523,2560.9,2560.8,43.11736114]
[1748110777741,4.32016097,2560.9,2560.8,43.11736114]